[Event "*** Titled Tuesday Blitz AM"]
[Site "Chess.com"]
[Date "2020.01.07"]
[Round "5"]
[White "goldenspine"]
[Black "FMAntonio"]
[Result "0-1"]
[WhiteElo "2321"]
[BlackElo "2495"]
[TimeControl "180+2"]
[EndTime "10:08:36 PST"]
[Termination "FMAntonio won by checkmate"]

1. d4 {[%clk 0:03:01.9]} 1... Nf6 {[%clk 0:02:59.7]} 2. Nf3 {[%clk 0:03:02.3]}
2... d5 {[%clk 0:03:00.3]} 3. c4 {[%clk 0:03:02.7]} 3... e6 {[%clk 0:03:00.8]}
4. g3 {[%clk 0:03:03.6]} 4... dxc4 {[%clk 0:03:00]} 5. Bg2 {[%clk 0:03:03.4]}
5... c5 {[%clk 0:03:00.8]} 6. O-O {[%clk 0:02:55.2]} 6... Nc6 {[%clk 0:03:01.1]}
7. dxc5 {[%clk 0:02:43.1]} 7... Qxd1 {[%clk 0:02:59.7]} 8. Rxd1 {[%clk 0:02:45]}
8... Bxc5 {[%clk 0:03:01]} 9. Nfd2 {[%clk 0:02:41.5]} 9... Bd7 {[%clk
0:02:56.2]} 10. Nxc4 {[%clk 0:02:42.1]} 10... O-O {[%clk 0:02:56.6]} 11. Bg5
{[%clk 0:02:40.8]} 11... Rfd8 {[%clk 0:02:53.3]} 12. Nc3 {[%clk 0:02:37.6]}
12... Be7 {[%clk 0:02:33]} 13. Nd6 {[%clk 0:02:16.8]} 13... Bxd6 {[%clk
0:02:30.4]} 14. Rxd6 {[%clk 0:02:17.3]} 14... Be8 {[%clk 0:02:31.1]} 15. Rad1
{[%clk 0:02:07.2]} 15... Rxd6 {[%clk 0:02:26.3]} 16. Rxd6 {[%clk 0:02:09.1]}
16... Rd8 {[%clk 0:02:22.6]} 17. Nb5 {[%clk 0:02:09.2]} 17... a6 {[%clk
0:02:04.5]} 18. Rxd8 {[%clk 0:02:08.6]} 18... Nxd8 {[%clk 0:02:04.9]} 19. Nd6
{[%clk 0:01:32.3]} 19... Bc6 {[%clk 0:02:04.5]} 20. Bxc6 {[%clk 0:00:37.5]}
20... bxc6 {[%clk 0:02:03.7]} 21. Bxf6 {[%clk 0:00:38.6]} 21... gxf6 {[%clk
0:02:03]} 22. Ne8 {[%clk 0:00:38.2]} 22... f5 {[%clk 0:02:03.3]} 23. Kg2 {[%clk
0:00:29.9]} 23... Nb7 {[%clk 0:01:58.3]} 24. Kf3 {[%clk 0:00:29.9]} 24... Kf8
{[%clk 0:01:55.2]} 25. Nf6 {[%clk 0:00:30.4]} 25... Ke7 {[%clk 0:01:47.2]} 26.
Nxh7 {[%clk 0:00:31.5]} 26... f6 {[%clk 0:01:48.2]} 27. g4 {[%clk 0:00:28]}
27... fxg4+ {[%clk 0:01:42.9]} 28. Kxg4 {[%clk 0:00:29.2]} 28... Kf7 {[%clk
0:01:44.4]} 29. f4 {[%clk 0:00:24.2]} 29... Kg7 {[%clk 0:01:44.8]} 30. f5 {[%clk
0:00:25.7]} 30... e5 {[%clk 0:01:35.7]} 31. Ng5 {[%clk 0:00:26.4]} 31... fxg5
{[%clk 0:01:35.8]} 32. Kxg5 {[%clk 0:00:28.3]} 32... Nd6 {[%clk 0:01:34.9]} 33.
f6+ {[%clk 0:00:25.8]} 33... Kf7 {[%clk 0:01:35.4]} 34. h4 {[%clk 0:00:26.5]}
34... e4 {[%clk 0:01:22.3]} 35. h5 {[%clk 0:00:21.4]} 35... Ne8 {[%clk
0:01:23.1]} 36. Kf5 {[%clk 0:00:20.3]} 36... Nxf6 {[%clk 0:01:24.2]} 37. h6
{[%clk 0:00:21.5]} 37... e3 {[%clk 0:01:15.7]} 38. Ke5 {[%clk 0:00:22.6]} 38...
Ng4+ {[%clk 0:01:13.9]} 39. Kd6 {[%clk 0:00:21.2]} 39... Nxh6 {[%clk 0:00:57.8]}
40. Kxc6 {[%clk 0:00:22.1]} 40... Nf5 {[%clk 0:00:58.8]} 41. b4 {[%clk
0:00:21.5]} 41... Ke6 {[%clk 0:00:52.8]} 42. Kc5 {[%clk 0:00:21.4]} 42... Ke5
{[%clk 0:00:52.7]} 43. a4 {[%clk 0:00:22.7]} 43... Nd4 {[%clk 0:00:48.8]} 44.
Kc4 {[%clk 0:00:23.9]} 44... Ke4 {[%clk 0:00:44.9]} 45. b5 {[%clk 0:00:17.1]}
45... axb5+ {[%clk 0:00:38.8]} 46. axb5 {[%clk 0:00:19]} 46... Nxe2 {[%clk
0:00:39]} 47. b6 {[%clk 0:00:16]} 47... Nd4 {[%clk 0:00:40.1]} 48. b7 {[%clk
0:00:17.5]} 48... Nc6 {[%clk 0:00:41.1]} 49. Kc5 {[%clk 0:00:19]} 49... Nb8
{[%clk 0:00:39.9]} 50. Kb6 {[%clk 0:00:20.3]} 50... e2 {[%clk 0:00:40.4]} 51.
Kc7 {[%clk 0:00:21.5]} 51... Na6+ {[%clk 0:00:37.6]} 52. Kb6 {[%clk 0:00:21.9]}
52... e1=Q {[%clk 0:00:35.7]} 53. Kxa6 {[%clk 0:00:22.9]} 53... Qa1+ {[%clk
0:00:33.7]} 54. Kb6 {[%clk 0:00:23.9]} 54... Qh8 {[%clk 0:00:33.1]} 55. Ka7
{[%clk 0:00:24.6]} 55... Qg7 {[%clk 0:00:28.6]} 56. Ka6 {[%clk 0:00:22.5]} 56...
Qe5 {[%clk 0:00:23.9]} 57. Ka7 {[%clk 0:00:21.8]} 57... Qc7 {[%clk 0:00:22.9]}
58. Ka8 {[%clk 0:00:21.3]} 58... Qa5+ {[%clk 0:00:23.6]} 59. Kb8 {[%clk
0:00:22.7]} 59... Kd5 {[%clk 0:00:23.9]} 60. Kc8 {[%clk 0:00:24.2]} 60... Qc5+
{[%clk 0:00:20.8]} 61. Kd8 {[%clk 0:00:24.4]} 61... Qb6+ {[%clk 0:00:21.4]} 62.
Kc8 {[%clk 0:00:25.8]} 62... Qa6 {[%clk 0:00:18.5]} 63. Kc7 {[%clk 0:00:26.2]}
63... Qc6+ {[%clk 0:00:19.5]} 64. Kb8 {[%clk 0:00:27.5]} 64... Kd6 {[%clk
0:00:20.3]} 65. Ka7 {[%clk 0:00:28.7]} 65... Qc7 {[%clk 0:00:19.6]} 66. Ka8
{[%clk 0:00:27.6]} 66... Qa5+ {[%clk 0:00:20.6]} 67. Kb8 {[%clk 0:00:28.3]}
67... Kc6 {[%clk 0:00:21.8]} 68. Kc8 {[%clk 0:00:29.7]} 68... Qc7# {[%clk
0:00:23.3]} 0-1

[Event "*** Titled Tuesday Blitz AM"]
[Site "Chess.com"]
[Date "2020.01.07"]
[Round "5"]
[White "SlavenPastar"]
[Black "talento10"]
[Result "1-0"]
[WhiteElo "2550"]
[BlackElo "2253"]
[TimeControl "180+2"]
[EndTime "10:08:37 PST"]
[Termination "SlavenPastar won by resignation"]

1. d4 {[%clk 0:03:01.9]} 1... Nf6 {[%clk 0:02:57.8]} 2. c4 {[%clk 0:03:02.5]}
2... g6 {[%clk 0:02:58.7]} 3. Nc3 {[%clk 0:03:02]} 3... d6 {[%clk 0:02:59.9]} 4.
Nf3 {[%clk 0:03:00]} 4... Bg7 {[%clk 0:03:00.3]} 5. Bg5 {[%clk 0:03:00.9]} 5...
h6 {[%clk 0:02:59.7]} 6. Bh4 {[%clk 0:03:01.5]} 6... g5 {[%clk 0:03:00.3]} 7.
Bg3 {[%clk 0:03:02.5]} 7... Nbd7 {[%clk 0:03:00.9]} 8. e3 {[%clk 0:03:01.8]}
8... e6 {[%clk 0:02:56]} 9. Bd3 {[%clk 0:02:57.8]} 9... Nh5 {[%clk 0:02:38.4]}
10. Nd2 {[%clk 0:02:47.1]} 10... Nxg3 {[%clk 0:02:33.5]} 11. hxg3 {[%clk
0:02:49]} 11... c5 {[%clk 0:02:32.4]} 12. d5 {[%clk 0:02:45.6]} 12... exd5
{[%clk 0:02:21.4]} 13. cxd5 {[%clk 0:02:35.2]} 13... O-O {[%clk 0:02:04.6]} 14.
Nc4 {[%clk 0:02:28.2]} 14... b5 {[%clk 0:01:54.4]} 15. Nxb5 {[%clk 0:02:25.2]}
15... Ba6 {[%clk 0:01:55.5]} 16. Nbxd6 {[%clk 0:02:19.1]} 16... Ne5 {[%clk
0:01:53.4]} 17. Nxe5 {[%clk 0:01:54.1]} 17... Qxd6 {[%clk 0:01:53.4]} 18. Nc6
{[%clk 0:01:24.7]} 18... c4 {[%clk 0:01:46.7]} 19. Be2 {[%clk 0:01:10.5]} 19...
Rac8 {[%clk 0:01:42.3]} 20. O-O {[%clk 0:00:47.3]} 20... Bxb2 {[%clk 0:01:37.3]}
21. Rb1 {[%clk 0:00:47.8]} 21... Qa3 {[%clk 0:01:35.8]} 22. Rxb2 {[%clk
0:00:41]} 22... Qxb2 {[%clk 0:01:27.5]} 23. Ne7+ {[%clk 0:00:41.8]} 23... Kg7
{[%clk 0:00:56.1]} 24. Nxc8 {[%clk 0:00:43.7]} 24... Rxc8 {[%clk 0:00:53.3]} 25.
d6 {[%clk 0:00:40.7]} 25... Rd8 {[%clk 0:00:38.5]} 26. d7 {[%clk 0:00:36.5]}
26... Bb5 {[%clk 0:00:36.6]} 27. Bg4 {[%clk 0:00:34.4]} 27... Qe5 {[%clk
0:00:31.5]} 28. Qc2 {[%clk 0:00:24.8]} 28... c3 {[%clk 0:00:26.8]} 29. Rd1
{[%clk 0:00:21.6]} 29... Qc7 {[%clk 0:00:24.4]} 30. Rd5 {[%clk 0:00:15.6]} 30...
Bxd7 {[%clk 0:00:21]} 31. Bxd7 {[%clk 0:00:11.6]} 31... Rxd7 {[%clk 0:00:22.8]}
32. Rxd7 {[%clk 0:00:12.3]} 32... Qxd7 {[%clk 0:00:24.7]} 33. Qxc3+ {[%clk
0:00:13.7]} 33... f6 {[%clk 0:00:22.6]} 34. Qd4 {[%clk 0:00:13.2]} 34... Qb7
{[%clk 0:00:21.1]} 35. a4 {[%clk 0:00:13.1]} 35... h5 {[%clk 0:00:20.4]} 36. Kh2
{[%clk 0:00:09.4]} 36... Qe7 {[%clk 0:00:19.2]} 37. a5 {[%clk 0:00:09.6]} 37...
Kg6 {[%clk 0:00:18.1]} 38. a6 {[%clk 0:00:10.2]} 38... f5 {[%clk 0:00:16.7]} 39.
Qc4 {[%clk 0:00:10.2]} 39... Kf6 {[%clk 0:00:15.9]} 40. Qc6+ {[%clk 0:00:09.6]}
40... Qe6 {[%clk 0:00:15.1]} 41. Qb7 {[%clk 0:00:06.5]} 41... Qe7 {[%clk
0:00:14.6]} 42. Kg1 {[%clk 0:00:07.1]} 42... Qc5 {[%clk 0:00:11.3]} 43. Kh2
{[%clk 0:00:05.1]} 43... Qe7 {[%clk 0:00:08.7]} 44. Qb2+ {[%clk 0:00:05.1]}
44... Qe5 {[%clk 0:00:08.1]} 45. Qb4 {[%clk 0:00:04.6]} 45... Qe7 {[%clk
0:00:08.4]} 46. Qd4+ {[%clk 0:00:05]} 46... Qe5 {[%clk 0:00:09.2]} 47. Qxa7
{[%clk 0:00:05.9]} 47... h4 {[%clk 0:00:09.3]} 48. Qb6+ {[%clk 0:00:06.9]} 48...
Kf7 {[%clk 0:00:10.5]} 49. a7 {[%clk 0:00:07.2]} 49... hxg3+ {[%clk 0:00:12.4]}
50. fxg3 {[%clk 0:00:07.9]} 50... Qh8+ {[%clk 0:00:12.7]} 51. Kg1 {[%clk
0:00:09.4]} 51... Qa1+ {[%clk 0:00:13.7]} 52. Kf2 {[%clk 0:00:10.9]} 52... Qa2+
{[%clk 0:00:15]} 53. Ke1 {[%clk 0:00:11.6]} 53... Qa1+ {[%clk 0:00:15.8]} 54.
Kd2 {[%clk 0:00:13]} 54... Qa2+ {[%clk 0:00:17.1]} 55. Kd3 {[%clk 0:00:14.4]}
55... Qd5+ {[%clk 0:00:18.3]} 56. Kc3 {[%clk 0:00:11.7]} 56... Qe5+ {[%clk
0:00:18.7]} 57. Qd4 {[%clk 0:00:12.6]} 57... Qa5+ {[%clk 0:00:19.9]} 58. Kb3
{[%clk 0:00:09.8]} 58... Qb5+ {[%clk 0:00:19.3]} 59. Qb4 {[%clk 0:00:05.1]}
59... Qd3+ {[%clk 0:00:20.2]} 60. Qc3 {[%clk 0:00:05.9]} 60... Qd1+ {[%clk
0:00:20.8]} 61. Kb4 {[%clk 0:00:06.5]} 61... Qb1+ {[%clk 0:00:21.4]} 62. Qb3+
{[%clk 0:00:07.8]} 62... Qxb3+ {[%clk 0:00:19.5]} 63. Kxb3 {[%clk 0:00:09.7]}
1-0

[Event "*** Titled Tuesday Blitz AM"]
[Site "Chess.com"]
[Date "2020.01.07"]
[Round "5"]
[White "mouseWLZ"]
[Black "crescentmoon2411"]
[Result "0-1"]
[WhiteElo "2808"]
[BlackElo "3087"]
[TimeControl "180+2"]
[EndTime "10:08:41 PST"]
[Termination "crescentmoon2411 won by checkmate"]

1. d4 {[%clk 0:03:00.7]} 1... Nf6 {[%clk 0:02:59.7]} 2. Bf4 {[%clk 0:03:02.1]}
2... c5 {[%clk 0:02:52.9]} 3. e3 {[%clk 0:03:03.2]} 3... g6 {[%clk 0:02:48.1]}
4. c3 {[%clk 0:03:03.4]} 4... Qb6 {[%clk 0:02:32.3]} 5. Qb3 {[%clk 0:03:02.9]}
5... Bg7 {[%clk 0:02:30.6]} 6. Nd2 {[%clk 0:03:03.4]} 6... d6 {[%clk 0:02:22]}
7. Be2 {[%clk 0:02:55.4]} 7... O-O {[%clk 0:02:21.3]} 8. Ngf3 {[%clk 0:02:54.7]}
8... Be6 {[%clk 0:02:20.3]} 9. Qxb6 {[%clk 0:02:26.4]} 9... axb6 {[%clk
0:02:22.2]} 10. a3 {[%clk 0:02:27.5]} 10... Nc6 {[%clk 0:02:17.5]} 11. h3 {[%clk
0:02:26.3]} 11... Ra5 {[%clk 0:01:32.6]} 12. O-O {[%clk 0:02:14.8]} 12... Rc8
{[%clk 0:01:30.4]} 13. e4 {[%clk 0:01:52.5]} 13... cxd4 {[%clk 0:01:19.5]} 14.
cxd4 {[%clk 0:01:47.5]} 14... d5 {[%clk 0:01:20.6]} 15. e5 {[%clk 0:01:33.3]}
15... Ne4 {[%clk 0:01:21.3]} 16. Rac1 {[%clk 0:01:23.2]} 16... h6 {[%clk
0:01:18.8]} 17. Be3 {[%clk 0:01:14.2]} 17... f6 {[%clk 0:01:05.2]} 18. exf6
{[%clk 0:00:54.6]} 18... exf6 {[%clk 0:01:07.1]} 19. Rfd1 {[%clk 0:00:54.6]}
19... f5 {[%clk 0:01:06.6]} 20. Nxe4 {[%clk 0:00:37]} 20... fxe4 {[%clk
0:00:48.5]} 21. Ne1 {[%clk 0:00:28.1]} 21... Raa8 {[%clk 0:00:48.2]} 22. Nc2
{[%clk 0:00:21.3]} 22... Bf8 {[%clk 0:00:44.4]} 23. f3 {[%clk 0:00:19.6]} 23...
exf3 {[%clk 0:00:41.8]} 24. Bxf3 {[%clk 0:00:21.5]} 24... Na5 {[%clk 0:00:38.8]}
25. Ne1 {[%clk 0:00:21.9]} 25... Nc4 {[%clk 0:00:38.3]} 26. Bf2 {[%clk
0:00:15.6]} 26... Nxb2 {[%clk 0:00:39.3]} 27. Rxc8 {[%clk 0:00:16.9]} 27... Rxc8
{[%clk 0:00:40.1]} 28. Rb1 {[%clk 0:00:18.5]} 28... Nc4 {[%clk 0:00:41]} 29. Nd3
{[%clk 0:00:19.2]} 29... g5 {[%clk 0:00:32.4]} 30. a4 {[%clk 0:00:19.1]} 30...
Ra8 {[%clk 0:00:29]} 31. Ne5 {[%clk 0:00:20.1]} 31... Rxa4 {[%clk 0:00:20.3]}
32. Nxc4 {[%clk 0:00:20.2]} 32... dxc4 {[%clk 0:00:21.3]} 33. Rxb6 {[%clk
0:00:21.1]} 33... Bf7 {[%clk 0:00:20.9]} 34. Rxb7 {[%clk 0:00:22]} 34... c3
{[%clk 0:00:22.1]} 35. Be3 {[%clk 0:00:17.2]} 35... Ra1+ {[%clk 0:00:18.7]} 36.
Kf2 {[%clk 0:00:18.1]} 36... Ra2+ {[%clk 0:00:19]} 37. Ke1 {[%clk 0:00:18.9]}
37... c2 {[%clk 0:00:19.8]} 38. Rc7 {[%clk 0:00:19.5]} 38... Bd6 {[%clk
0:00:19.5]} 39. Rc8+ {[%clk 0:00:19.7]} 39... Kg7 {[%clk 0:00:20.3]} 40. d5
{[%clk 0:00:20.3]} 40... Bg6 {[%clk 0:00:17.4]} 41. Bd4+ {[%clk 0:00:19.4]}
41... Kf7 {[%clk 0:00:18.2]} 42. Be3 {[%clk 0:00:18.4]} 42... Bg3+ {[%clk
0:00:18.8]} 43. Kd2 {[%clk 0:00:18.1]} 43... Ra1 {[%clk 0:00:17.9]} 44. Ke2
{[%clk 0:00:15.7]} 44... Re1+ {[%clk 0:00:18]} 45. Kd2 {[%clk 0:00:14.5]} 45...
Rxe3 {[%clk 0:00:19.3]} 46. Kxe3 {[%clk 0:00:15.1]} 46... Bf4+ {[%clk
0:00:19.9]} 47. Kf2 {[%clk 0:00:12.9]} 47... c1=Q {[%clk 0:00:21.8]} 48. Rxc1
{[%clk 0:00:13.6]} 48... Bxc1 {[%clk 0:00:23.7]} 49. g3 {[%clk 0:00:11.8]} 49...
Ke7 {[%clk 0:00:24.1]} 50. h4 {[%clk 0:00:12]} 50... Kd6 {[%clk 0:00:24.9]} 51.
Kg2 {[%clk 0:00:12.6]} 51... Bf5 {[%clk 0:00:24.5]} 52. Kf2 {[%clk 0:00:11.3]}
52... Ke5 {[%clk 0:00:25.4]} 53. Kg2 {[%clk 0:00:12.1]} 53... g4 {[%clk
0:00:25.9]} 54. Bd1 {[%clk 0:00:11.7]} 54... h5 {[%clk 0:00:24.5]} 55. Bb3
{[%clk 0:00:12.3]} 55... Be4+ {[%clk 0:00:25.6]} 56. Kh2 {[%clk 0:00:12.2]}
56... Bxd5 {[%clk 0:00:26.8]} 57. Ba4 {[%clk 0:00:13.2]} 57... Bf7 {[%clk
0:00:27.4]} 58. Bd7 {[%clk 0:00:13.4]} 58... Kd4 {[%clk 0:00:28.4]} 59. Bc8
{[%clk 0:00:14.3]} 59... Ke3 {[%clk 0:00:29.6]} 60. Kg2 {[%clk 0:00:14.6]} 60...
Ke2 {[%clk 0:00:28.5]} 61. Bb7 {[%clk 0:00:15.4]} 61... Ba3 {[%clk 0:00:26.9]}
62. Be4 {[%clk 0:00:16.2]} 62... Bd6 {[%clk 0:00:28]} 63. Bb7 {[%clk 0:00:16.9]}
63... Ke3 {[%clk 0:00:28.6]} 64. Bc6 {[%clk 0:00:17.7]} 64... Bg6 {[%clk
0:00:29.9]} 65. Bd7 {[%clk 0:00:15.1]} 65... Be4+ {[%clk 0:00:30.4]} 66. Kh2
{[%clk 0:00:16.2]} 66... Kf2 {[%clk 0:00:31.6]} 67. Be8 {[%clk 0:00:17.6]} 67...
Bxg3# {[%clk 0:00:32.8]} 0-1

[Event "*** Titled Tuesday Blitz AM"]
[Site "Chess.com"]
[Date "2020.01.07"]
[Round "5"]
[White "wannabe2700"]
[Black "AwareIdea"]
[Result "0-1"]
[WhiteElo "2762"]
[BlackElo "2533"]
[TimeControl "180+2"]
[EndTime "10:08:43 PST"]
[Termination "AwareIdea won by checkmate"]

1. e4 {[%clk 0:03:01.9]} 1... e5 {[%clk 0:03:00.5]} 2. Nf3 {[%clk 0:03:03]} 2...
Nc6 {[%clk 0:03:01.2]} 3. Bb5 {[%clk 0:03:04.4]} 3... a6 {[%clk 0:03:01.9]} 4.
Ba4 {[%clk 0:03:05.8]} 4... Nf6 {[%clk 0:03:02.8]} 5. O-O {[%clk 0:03:07.3]}
5... Be7 {[%clk 0:03:03.7]} 6. Re1 {[%clk 0:03:08.4]} 6... b5 {[%clk 0:03:05]}
7. Bb3 {[%clk 0:03:10]} 7... d6 {[%clk 0:03:06.9]} 8. c3 {[%clk 0:03:10.8]} 8...
O-O {[%clk 0:03:07.8]} 9. h3 {[%clk 0:03:12.4]} 9... Nb8 {[%clk 0:03:08.6]} 10.
d4 {[%clk 0:03:13.4]} 10... Nbd7 {[%clk 0:03:10.1]} 11. Nbd2 {[%clk 0:03:12.1]}
11... Bb7 {[%clk 0:03:11.2]} 12. Bc2 {[%clk 0:03:12.2]} 12... Re8 {[%clk
0:03:12.5]} 13. Nf1 {[%clk 0:03:12.2]} 13... Bf8 {[%clk 0:03:13.8]} 14. Ng3
{[%clk 0:03:11.1]} 14... g6 {[%clk 0:03:15.2]} 15. a4 {[%clk 0:03:11.5]} 15...
exd4 {[%clk 0:03:15.6]} 16. cxd4 {[%clk 0:03:11.6]} 16... c5 {[%clk 0:03:17]}
17. d5 {[%clk 0:03:10.3]} 17... c4 {[%clk 0:03:18.2]} 18. Bg5 {[%clk 0:03:10]}
18... Qc7 {[%clk 0:03:18.6]} 19. Qd2 {[%clk 0:03:09.5]} 19... Bg7 {[%clk
0:03:19.1]} 20. axb5 {[%clk 0:02:47.3]} 20... axb5 {[%clk 0:03:19.6]} 21. Qb4
{[%clk 0:02:49]} 21... Qc5 {[%clk 0:03:13.4]} 22. Bd2 {[%clk 0:02:45.4]} 22...
Rec8 {[%clk 0:02:57.9]} 23. Qxc5 {[%clk 0:02:23.7]} 23... Nxc5 {[%clk
0:02:59.8]} 24. Nd4 {[%clk 0:02:25]} 24... Nxd5 {[%clk 0:02:32.9]} 25. Nxb5
{[%clk 0:02:25.4]} 25... Rxa1 {[%clk 0:02:04.1]} 26. Rxa1 {[%clk 0:02:27.3]}
26... Bxb2 {[%clk 0:02:01.3]} 27. Rb1 {[%clk 0:02:09.3]} 27... c3 {[%clk
0:02:01.8]} 28. exd5 {[%clk 0:01:57]} 28... cxd2 {[%clk 0:01:55.8]} 29. Rxb2
{[%clk 0:01:57.5]} 29... Nd3 {[%clk 0:01:54.9]} 30. Bxd3 {[%clk 0:01:33.6]}
30... d1=Q+ {[%clk 0:01:47.9]} 31. Bf1 {[%clk 0:01:34.8]} 31... Bxd5 {[%clk
0:01:41.8]} 32. Nxd6 {[%clk 0:01:31.7]} 32... Rc1 {[%clk 0:01:41.2]} 33. Rb8+
{[%clk 0:01:27.5]} 33... Kg7 {[%clk 0:01:41.5]} 34. Rd8 {[%clk 0:01:29.4]} 34...
Qb3 {[%clk 0:01:29.8]} 35. Ne8+ {[%clk 0:01:29.2]} 35... Kf8 {[%clk 0:01:16.1]}
36. Nf6+ {[%clk 0:01:26.8]} 36... Ke7 {[%clk 0:01:15.8]} 37. Rxd5 {[%clk
0:01:26]} 37... Kxf6 {[%clk 0:01:16.1]} 38. Rd4 {[%clk 0:01:10.5]} 38... h5
{[%clk 0:01:14.7]} 39. h4 {[%clk 0:00:55.8]} 39... Kg7 {[%clk 0:01:13.4]} 40.
Rf4 {[%clk 0:00:53.8]} 40... Qb8 {[%clk 0:01:09.9]} 41. Re4 {[%clk 0:00:51.1]}
41... Qb7 {[%clk 0:01:08.2]} 42. Rf4 {[%clk 0:00:51.8]} 42... Qc7 {[%clk
0:01:08.8]} 43. Re4 {[%clk 0:00:52.5]} 43... Qc5 {[%clk 0:01:03.7]} 44. Rf4
{[%clk 0:00:53.3]} 44... Rc3 {[%clk 0:01:04.2]} 45. Ne4 {[%clk 0:00:52.4]} 45...
Qe5 {[%clk 0:00:57.1]} 46. Nxc3 {[%clk 0:00:50.7]} 46... Qxf4 {[%clk 0:00:57.9]}
47. g3 {[%clk 0:00:52.2]} 47... Qb4 {[%clk 0:00:53.9]} 48. Ne2 {[%clk
0:00:35.1]} 48... f6 {[%clk 0:00:53.8]} 49. Nf4 {[%clk 0:00:36]} 49... Kh6
{[%clk 0:00:51.9]} 50. Be2 {[%clk 0:00:29.7]} 50... g5 {[%clk 0:00:49.1]} 51.
hxg5+ {[%clk 0:00:29.7]} 51... fxg5 {[%clk 0:00:49.8]} 52. Ng2 {[%clk 0:00:27]}
52... h4 {[%clk 0:00:41.7]} 53. gxh4 {[%clk 0:00:23]} 53... gxh4 {[%clk
0:00:43.6]} 54. Kh2 {[%clk 0:00:16.1]} 54... Qd2 {[%clk 0:00:40.1]} 55. Bg4
{[%clk 0:00:07]} 55... Qxf2 {[%clk 0:00:39.8]} 56. Kh1 {[%clk 0:00:06.3]} 56...
Qg3 {[%clk 0:00:39.4]} 57. Bd7 {[%clk 0:00:06.8]} 57... h3 {[%clk 0:00:37.7]}
58. Bxh3 {[%clk 0:00:07.4]} 58... Qxh3+ {[%clk 0:00:39.6]} 59. Kg1 {[%clk
0:00:09.3]} 59... Qg3 {[%clk 0:00:39.3]} 60. Kf1 {[%clk 0:00:10.7]} 60... Kg5
{[%clk 0:00:40.7]} 61. Ne1 {[%clk 0:00:11.6]} 61... Kf4 {[%clk 0:00:39.5]} 62.
Ke2 {[%clk 0:00:12.8]} 62... Ke4 {[%clk 0:00:37.8]} 63. Kd2 {[%clk 0:00:13.1]}
63... Qf2+ {[%clk 0:00:33.8]} 64. Kd1 {[%clk 0:00:13.9]} 64... Kd4 {[%clk
0:00:32]} 65. Nc2+ {[%clk 0:00:12.7]} 65... Kc3 {[%clk 0:00:32.4]} 66. Ne1
{[%clk 0:00:12.4]} 66... Qd2# {[%clk 0:00:33.2]} 0-1

[Event "*** Titled Tuesday Blitz AM"]
[Site "Chess.com"]
[Date "2020.01.07"]
[Round "5"]
[White "Leonid_Starozhilov"]
[Black "karinachess1"]
[Result "1-0"]
[WhiteElo "2696"]
[BlackElo "2473"]
[TimeControl "180+2"]
[EndTime "10:08:45 PST"]
[Termination "Leonid_Starozhilov won on time"]

1. b3 {[%clk 0:03:01.9]} 1... e5 {[%clk 0:03:00.1]} 2. Bb2 {[%clk 0:03:02.5]}
2... Nc6 {[%clk 0:03:01.5]} 3. e3 {[%clk 0:03:03.7]} 3... g6 {[%clk 0:02:59]} 4.
Bb5 {[%clk 0:03:04.1]} 4... Bg7 {[%clk 0:02:59.5]} 5. Ne2 {[%clk 0:03:04.8]}
5... Nge7 {[%clk 0:02:58.1]} 6. h4 {[%clk 0:03:05.5]} 6... h5 {[%clk 0:02:56.2]}
7. d4 {[%clk 0:03:03.1]} 7... a6 {[%clk 0:02:39.6]} 8. Bxc6 {[%clk 0:03:02.1]}
8... Nxc6 {[%clk 0:02:38.7]} 9. d5 {[%clk 0:03:03.2]} 9... Ne7 {[%clk
0:02:26.6]} 10. c4 {[%clk 0:02:39.8]} 10... d6 {[%clk 0:02:26.7]} 11. Nbc3
{[%clk 0:02:35.5]} 11... Bg4 {[%clk 0:02:26.7]} 12. Ne4 {[%clk 0:02:28.9]} 12...
b6 {[%clk 0:02:17.5]} 13. Qd2 {[%clk 0:02:26.7]} 13... a5 {[%clk 0:02:16.7]} 14.
N2c3 {[%clk 0:02:17.2]} 14... Qc8 {[%clk 0:02:03.7]} 15. a4 {[%clk 0:02:02.3]}
15... Qd8 {[%clk 0:01:39.5]} 16. f3 {[%clk 0:01:58.5]} 16... Bd7 {[%clk
0:01:35.2]} 17. O-O-O {[%clk 0:01:57.2]} 17... Nf5 {[%clk 0:01:34]} 18. Kb1
{[%clk 0:01:53.2]} 18... Nxh4 {[%clk 0:01:28.6]} 19. Ka2 {[%clk 0:01:30.2]}
19... Qe7 {[%clk 0:01:25.3]} 20. Nb5 {[%clk 0:01:12.7]} 20... Rc8 {[%clk
0:01:01.8]} 21. Ba3 {[%clk 0:00:45.7]} 21... Bxb5 {[%clk 0:00:38.8]} 22. axb5
{[%clk 0:00:45.5]} 22... f5 {[%clk 0:00:39.3]} 23. Nc3 {[%clk 0:00:45.8]} 23...
g5 {[%clk 0:00:34.6]} 24. Qc2 {[%clk 0:00:40]} 24... Qf7 {[%clk 0:00:28.9]} 25.
Rh2 {[%clk 0:00:35.2]} 25... Ng6 {[%clk 0:00:29.4]} 26. Ne2 {[%clk 0:00:30.9]}
26... h4 {[%clk 0:00:28.8]} 27. Rdh1 {[%clk 0:00:31.7]} 27... Kd7 {[%clk
0:00:29.2]} 28. Bb2 {[%clk 0:00:30.8]} 28... Rcf8 {[%clk 0:00:29.3]} 29. Bc3
{[%clk 0:00:29.7]} 29... Qe7 {[%clk 0:00:29]} 30. Qb2 {[%clk 0:00:27.7]} 30...
g4 {[%clk 0:00:27]} 31. f4 {[%clk 0:00:28.8]} 31... Re8 {[%clk 0:00:21.6]} 32.
Rf1 {[%clk 0:00:19.3]} 32... Rhf8 {[%clk 0:00:18.4]} 33. Rhh1 {[%clk 0:00:19.1]}
33... Rf7 {[%clk 0:00:18.9]} 34. Re1 {[%clk 0:00:16.2]} 34... Rh8 {[%clk
0:00:14.8]} 35. Rhf1 {[%clk 0:00:13.4]} 35... h3 {[%clk 0:00:12.2]} 36. g3
{[%clk 0:00:12.1]} 36... Re8 {[%clk 0:00:10.6]} 37. Qd2 {[%clk 0:00:08.6]} 37...
Ra8 {[%clk 0:00:09.4]} 38. Ka3 {[%clk 0:00:08.9]} 38... Rh8 {[%clk 0:00:08.6]}
39. Ka4 {[%clk 0:00:08.9]} 39... Re8 {[%clk 0:00:08.4]} 40. Ka3 {[%clk 0:00:10]}
40... Rh8 {[%clk 0:00:08]} 41. Nc1 {[%clk 0:00:10.9]} 41... e4 {[%clk 0:00:04]}
42. Ne2 {[%clk 0:00:11.7]} 42... Bxc3 {[%clk 0:00:04.1]} 43. Qxc3 {[%clk
0:00:13.1]} 43... Qf6 {[%clk 0:00:05.3]} 44. Nd4 {[%clk 0:00:14.2]} 44... Rfh7
{[%clk 0:00:04.3]} 45. Rh1 {[%clk 0:00:13.6]} 45... h2 {[%clk 0:00:05.5]} 46.
Re2 {[%clk 0:00:15.1]} 46... Rh3 {[%clk 0:00:06.6]} 47. Rg2 {[%clk 0:00:16.7]}
47... Ne7 {[%clk 0:00:07.5]} 48. Kb2 {[%clk 0:00:16.5]} 48... Ng6 {[%clk
0:00:07.5]} 49. Kc2 {[%clk 0:00:17.6]} 49... Ne7 {[%clk 0:00:08.6]} 50. b4
{[%clk 0:00:17.8]} 50... axb4 {[%clk 0:00:08.6]} 51. Qxb4 {[%clk 0:00:19.3]}
51... Ra8 {[%clk 0:00:09.8]} 52. Rhxh2 {[%clk 0:00:20.2]} 52... Qh8 {[%clk
0:00:09.5]} 53. Rxh3 {[%clk 0:00:19.6]} 53... Qxh3 {[%clk 0:00:11.4]} 54. Rd2
{[%clk 0:00:18.1]} 54... Qxg3 {[%clk 0:00:11.7]} 55. Qc3 {[%clk 0:00:19]} 55...
Qe1 {[%clk 0:00:12.1]} 56. Qb2 {[%clk 0:00:16.6]} 56... Qxe3 {[%clk 0:00:11.9]}
57. Nc6 {[%clk 0:00:17.8]} 57... Qa3 {[%clk 0:00:06]} 58. Qg7 {[%clk 0:00:13.2]}
58... Qa4+ {[%clk 0:00:07.1]} 59. Kc3 {[%clk 0:00:12.3]} 59... Qa1+ {[%clk
0:00:07.9]} 60. Rb2 {[%clk 0:00:12.3]} 60... Ra3+ {[%clk 0:00:04.3]} 61. Kc2
{[%clk 0:00:13]} 1-0